Cogmind - Beta 9 @@@ ROGUE MODE // 2019.10.27 @ 23:11:50 Player: Finestep Result: Destroyed by H-66 Slayer with Gauss Rifle Performance ------------- Evolutions (3) 1500 Regions Visited (9) 1800 Robots Destroyed (183) 915 Value Destroyed (5433) 5433 Prototype IDs (16) 320 Alien Tech Used (0) 0 Bonus (684) 684 TOTAL SCORE: 10652 Bonus ------- High Alert Combat Kills 292 Follower Combat Kills 134 Met Data Miner 300 Friendly Fire -42 Cogmind --------- Core Integrity 0/700 Matter 285/300 Energy 72/290 System Corruption 10% Temperature Cool (220) Location -6/Proximity Caves Parts ------- Power (1) Reinforced Deuterium Engine Propulsion (3) Improved Medium Treads Improved Medium Treads Improved Medium Treads Utility (7) Improved Cooling System Large Storage Unit Large Storage Unit High-capacity Storage Unit Advanced Targeting Computer Weapon Cycler Layered Medium Armor Plating Weapon (2) Improved EM Pulse Cannon Heavy Particle Cannon Inventory (24) Improved Medium Treads Improved Medium Treads Titanium Leg Improved Carbon-fiber Leg Improved Carbon-fiber Leg Improved Titanium Leg Advanced Heat Sink Improved Cooling System Compact Matter Pod (150) Advanced Terrain Scanner Advanced Terrain Scan Processor Makeshift Transmission Jammer Magnetic Acceleration Cannon Magnetic Acceleration Cannon Shock Bomb Launcher Proton Missile Launcher Rocket Array Axe Tearclaws Blade Trap Blade Trap Peak State ------------ Power Improved Deuterium Engine Propulsion Improved Medium Treads Improved Medium Treads Improved Medium Treads Utility Improved Cooling System Large Storage Unit Large Storage Unit High-capacity Storage Unit Advanced Targeting Computer Layered Medium Armor Plating Experimental Thermal Shield Weapon Improved EM Pulse Cannon Improved EM Pulse Cannon Inventory Improved Medium Treads Improved Medium Treads Titanium Leg Improved Carbon-fiber Leg Improved Carbon-fiber Leg Improved Titanium Leg Advanced Heat Sink Improved Cooling System Compact Matter Pod Advanced Terrain Scanner Advanced Terrain Scan Processor Weapon Cycler Makeshift Transmission Jammer Heavy Particle Cannon Magnetic Acceleration Cannon Magnetic Acceleration Cannon Shock Bomb Launcher Proton Missile Launcher Rocket Array Axe Tearclaws Blade Trap Blade Trap [Rating: 60] Favorites ----------- Power Light Nuclear Core Engine Improved Deuterium Engine Power Core Light Nuclear Core Propulsion Light Treads Treads Light Treads Leg Improved Carbon-fiber Leg Wheel Armored Huge Wheel Utility Large Storage Unit Device Energy Filter Storage Large Storage Unit Processor Advanced Targeting Computer Protection Reactive Plating Weapon Improved Assault Rifle Energy Gun Shock Rifle Energy Cannon EM Pulse Cannon Ballistic Gun Improved Assault Rifle Ballistic Cannon Assault Cannon Launcher Rocket Array Special Weapon Mining Laser Impact Weapon Heavy Mace Slashing Weapon Axe Build | -11 -10 -10 -9 -8 -7 -7 -7 -7 -6 ------- Run | Scr Mat Min Mat Mat Fac Low Low Dat Pro Slots Evolved 6 | . . . 2 2 2 . . . . Power . | . . . . . . . . . . Propulsion 1 | . . . . 1 . . . . . Utility 5 | . . . 2 1 2 . . . . Weapon . | . . . . . . . . . . Parts Attached 165 | 7 14 4 14 35 40 16 17 2 16 Power 18 | 1 2 . . 3 5 3 1 . 3 Engine 10 | 1 2 . . . 1 3 1 . 2 Core 8 | . . . . 3 4 . . . 1 Reactor . | . . . . . . . . . . Propulsion 41 | 2 2 2 5 13 10 3 2 . 2 Treads 23 | . . 2 1 11 4 2 2 . 1 Leg 9 | . 2 . . . 5 1 . . 1 Wheel 9 | 2 . . 4 2 1 . . . . Hover . | . . . . . . . . . . Flight . | . . . . . . . . . . Utility 41 | 2 3 . 2 10 13 1 4 . 6 Device 8 | 1 . . . . . . 3 . 4 Storage 10 | 1 3 . 1 3 1 . . . 1 Processor 7 | . . . . 1 6 . . . . Hackware . | . . . . . . . . . . Protection 16 | . . . 1 6 6 1 1 . 1 Artifact . | . . . . . . . . . . Weapon 65 | 2 7 2 7 9 12 9 10 2 5 Energy Gun 3 | . 1 1 . . . . 1 . . Energy Cannon 13 | . . . . . . 3 4 2 4 Ballistic Gun 20 | 2 6 . 3 7 2 . . . . Ballistic Cannon 11 | . . . . 1 6 3 . . 1 Launcher 8 | . . . . . 4 1 3 . . Special Weapon 4 | . . 1 2 1 . . . . . Impact Weapon 2 | . . . 2 . . . . . . Slashing Weapon 4 | . . . . . . 2 2 . . Piercing Weapon . | . . . . . . . . . . Special Melee Weapon . | . . . . . . . . . . Unidentified Prototypes 3 | . . . 1 . 1 . . . 1 Parts Lost 43 | . 7 3 3 12 5 1 6 . 6 Power 9 | . 2 . 1 3 1 . 1 . 1 Propulsion 11 | . 2 1 2 3 1 . 2 . . Utility 7 | . . . . 1 1 1 2 . 2 Weapon 16 | . 3 2 . 5 2 . 1 . 3 Highest Loss Streak 4 | . 3 4 1 3 3 1 3 . 4 Average Slot Usage (%) 92 | . 97 85 80 93 97 87 89 77 96 Engine 4 | . 12 14 2 . 1 7 7 7 5 Core 2 | . . . . 5 5 . . . . Treads 11 | . . 28 3 20 11 1 14 15 15 Leg 4 | . 11 . . . 8 4 . . 5 Wheel 5 | . 16 . 15 6 1 7 3 . . Device 1 | . 5 . . . . . 5 15 9 Storage 24 | . 22 28 33 27 23 23 23 23 28 Processor 12 | . . . . 7 23 19 10 7 7 Protection 6 | . . . 5 8 6 6 8 7 6 Energy Cannon 2 | . . . . . . 5 7 1 14 Ballistic Gun 9 | . 27 . 14 17 7 . . . . Ballistic Cannon 3 | . . . . . 6 6 . . . Naked Turns . | . . . . . . . . . . Heaviest Build 106 | 11 71 70 91 98 101 103 106 98 104 Greatest Support 90 | 32 32 40 26 65 65 28 80 60 90 Greatest Overweight (x) 9 | . 4 1 8 9 4 5 5 1 1 Average Overweight (x) 1 | . . 1 4 1 1 3 2 1 1 Largest Inventory Capacity 26 | 6 20 20 26 26 26 24 24 24 24 Average Capacity 23 | 5 10 20 26 26 24 24 24 24 24 Most Carried 26 | 6 13 15 23 26 25 24 24 24 24 Average Carried 21 | 2 7 11 17 24 23 23 23 24 23 Final Capacity 24 | . . . . . . . . . 24 Final Carried 22 | . . . . . . . . . 22 Class Distribution -------------------- 92% | Hauler-Mutant 5% | Mutant Dominant Class ---------------- Mutant | -10/Materials Hauler-Mutant | -10/Mines Hauler-Mutant | -9/Materials Hauler-Mutant | -8/Materials Hauler-Mutant | -7/Factory Hauler-Mutant | -7/Lower Caves Hauler-Mutant | -7/Lower Caves Hauler-Mutant | -7/Data Miner Hauler-Mutant | -6/Proximity Caves Resources | -11 -10 -10 -9 -8 -7 -7 -7 -7 -6 ----------- Run | Scr Mat Min Mat Mat Fac Low Low Dat Pro Matter Collected 4924 | 204 528 19 380 1243 1583 375 399 . 193 Remotely . | . . . . . . . . . . Salvage Created 7377 | 127 733 19 1105 1860 2153 176 878 . 326 Parts 397 | 12 50 3 45 104 128 7 31 . 17 Haulers Intercepted 6 | . 1 . 1 2 2 . . . . Recyclers Shooed 13 | . 6 . 4 1 2 . . . . Parts Field Recycled . | . . . . . . . . . . Retrieved Matter . | . . . . . . . . . . Parts Self-Destructed 22 | . . . . . . . 12 . 10 Prevented 23 | . . . . . . 2 11 . 10 Kills | -11 -10 -10 -9 -8 -7 -7 -7 -7 -6 ------- Run | Scr Mat Min Mat Mat Fac Low Low Dat Pro Combat Hostiles Destroyed 126 | . 16 2 12 36 35 2 18 . 5 Melee 1 | . . 1 . . . . . . . Guns 78 | . 16 . 11 35 16 . . . . Cannons 23 | . . 1 . 1 13 1 4 . 3 AOE 20 | . . . . . 6 1 13 . . Classes Destroyed 16 | 2 4 . 2 3 3 2 . . . Worker 10 | . . . 4 3 3 . . . . Builder 8 | . . . . 4 4 . . . . Tunneler 5 | 3 1 . . . 1 . . . . Hauler 6 | . 1 . 1 2 2 . . . . Recycler 17 | 1 1 . 8 2 5 . . . . Carrier 1 | . . . . . 1 . . . . Watcher 7 | . 2 . . 1 4 . . . . Swarmer 33 | . 3 1 6 9 7 . 7 . . Grunt 53 | . 13 1 5 16 12 . 5 . 1 Brawler 3 | . . . . 1 . . 2 . . Duelist 3 | . . . . . 2 . . . 1 Sentry 18 | . . . 1 8 7 . 2 . . Hunter 4 | . . . . 2 . . 1 . 1 Programmer 8 | . . . . . 7 . . . 1 Behemoth 3 | . . . . . . 1 1 . 1 Decomposer 2 | . . . . . . 2 . . . Packrat 1 | . . . . . . . 1 . . Thief 1 | . . . . . . 1 . . . Best Kill Streak 10 | 3 5 1 10 5 8 1 9 . 1 Combat Bots Only 9 | . 4 1 4 5 7 1 9 . 1 Max Kills in Single Turn 4 | 1 2 1 1 2 4 2 3 . 1 Gunslinging 1 | . 1 . . 1 1 . . . . Exploded 4 | . . . . . 4 1 3 . . Melee 1 | . . 1 . . . . . . . Uniques/NPCs Destroyed . | . . . . . . . . . . Combat | -11 -10 -10 -9 -8 -7 -7 -7 -7 -6 -------- Run | Scr Mat Min Mat Mat Fac Low Low Dat Pro Damage Taken 9429 | . 946 332 735 2305 2543 457 1063 . 1048 Core 1512 | . 232 10 256 294 308 74 200 . 138 Absorbed by Shields . | . . . . . . . . . . Core Remaining (%) 46 | 100 . 3 36 46 . . . . . Volleys Fired 535 | 13 94 11 53 157 134 25 23 . 25 Largest 2 | 2 2 1 2 2 2 2 2 . 2 Hottest 144 | 40 60 100 100 100 88 107 132 . 144 Shots Fired 997 | 26 185 11 99 307 254 40 33 . 42 Gun 758 | 26 185 7 93 305 132 3 7 . . Cannon 209 | . . . . 1 119 34 13 . 42 Launcher 19 | . . . . . 3 3 13 . . Special 11 | . . 4 6 1 . . . . . Kinetic 892 | 26 183 3 93 306 251 25 2 . 3 Thermal 13 | . . 4 6 1 . . . . 2 Explosive 11 | . . . . . 1 3 7 . . Electromagnetic 81 | . 2 4 . . 2 12 24 . 37 Robot Hit Streak 32 | 6 12 10 7 29 32 20 9 . 8 Robot Miss Streak 5 | 2 5 2 4 4 3 3 1 . 1 Penetration Max 1 | . . . . . 1 . . . . Secondary Targets 17 | . 3 . 3 8 3 . . . . Max Gunslinging Chain 1 | . 1 . 1 1 1 . . . . Shots Hit Robots 722 | 15 115 9 64 247 193 27 19 . 33 Core Hits 339 | 6 45 3 31 98 101 7 35 . 13 Critical Hits 15 | . . . . 3 11 . . . 1 Critical Kills 7 | . . . . 1 5 . . . 1 Critical Parts Destroyed 8 | . . . . 2 6 . . . . Melee Attacks 15 | . . . 6 . . 7 2 . . Impact 6 | . . . 6 . . . . . . Slashing 9 | . . . . . . 7 2 . . Piercing . | . . . . . . . . . . Sneak Attacks 3 | . . . 2 . . . 1 . . Combat Hostiles . | . . . . . . . . . . Follow-up Attacks . | . . . . . . . . . . Damage Inflicted 14024 | 156 1152 172 1146 3558 4301 703 1869 . 967 Guns 7751 | 156 1093 75 828 3538 1970 44 47 . . Cannons 3573 | . . . . 20 1905 538 256 . 854 Explosions 2169 | . 59 . . . 426 121 1450 . 113 Melee 395 | . . . 279 . . . 116 . . Ramming 40 | . . 25 15 . . . . . . Kinetic 10018 | 156 1068 21 828 3558 3875 385 34 . 93 Thermal 781 | . 59 72 24 . 46 121 296 . 163 Explosive 817 | . . . . . 240 . 577 . . Electromagnetic 1973 | . 25 54 . . 140 197 846 . 711 Impact 279 | . . . 279 . . . . . . Slashing 116 | . . . . . . . 116 . . Piercing . | . . . . . . . . . . Highest Corruption 10 | . . . . . 4 4 10 10 10 Average Corruption 5 | . . . . . 1 4 7 10 10 Corruption Purged . | . . . . . . . . . . Effects 112 | . . . . . 21 26 34 6 25 Message Errors 26 | . . . . . 7 8 9 . 2 Matter Fused 21 | . . . . . 2 3 11 1 4 Heat Flow Errors 16 | . . . . . 1 4 7 2 2 Energy Discharges 11 | . . . . . 3 3 2 . 3 Parts Rejected 2 | . . . . . . . . . 2 Data Loss (minor) 12 | . . . . . 3 3 3 1 2 Data Loss (major) 3 | . . . . . . . . 2 1 Alerts 2 | . . . . . . . 1 . 1 Misdirections 3 | . . . . . . . . . 3 Targeting Errors 13 | . . . . . 3 5 1 . 4 Weapon Failures 3 | . . . . . 2 . . . 1 Overload Shots . | . . . . . . . . . . Overflow Damage 156 | . . 1 119 . 6 . 30 . . Projectiles 17 | . . 1 . . . . 16 . . Explosions 20 | . . . . . 6 . 14 . . Melee 119 | . . . 119 . . . . . . Knockbacks 17 | . . . 1 . 13 2 . . 1 Impact 1 | . . . 1 . . . . . . Kinetic 16 | . . . . . 13 2 . . 1 Secondary . | . . . . . . . . . . Self-Inflicted Damage 206 | . . . 7 . 59 58 82 . . Shots 10 | . . . . . 3 2 5 . . Rammed 5 | . . 4 1 . . . . . . Targets Rammed 6 | . . 5 1 . . . . . . Kicked . | . . . . . . . . . . Crushed 1 | . . 1 . . . . . . . Highest Temperature 338 | . 26 98 8 18 312 338 269 189 334 Average Temperature 70 | . 7 40 5 6 68 103 79 82 106 Received Heat Transfer 2655 | . 480 183 222 864 699 12 81 . 114 Effects 1 | . . . . . . 1 . . . Energy Bleed 1 | . . . . . . 1 . . . Siege Activations . | . . . . . . . . . . Robots Corrupted 2 | . . . . . . . . . 2 Combat Hostiles 2 | . . . . . . . . . 2 Parts Fried 8 | . . . 2 . . . . . 6 Impact Corruptions 2 | . . . 2 . . . . . . Robots Melted . | . . . . . . . . . . Combat Hostiles . | . . . . . . . . . . Parts Melted . | . . . . . . . . . . Heat Transferred 924 | . 100 150 50 . 50 50 350 . 174 Parts Sabotaged . | . . . . . . . . . . Parts Stolen 2 | . . . . . . 2 . . . Parts Stripped . | . . . . . . . . . . Power Chain Reactions 8 | . 1 . . . 1 2 2 . 2 Missiles Intercepted . | . . . . . . . . . . Alert | -11 -10 -10 -9 -8 -7 -7 -7 -7 -6 ------- Run | Scr Mat Min Mat Mat Fac Low Low Dat Pro Peak Influence 890 | 20 359 69 345 327 890 . . . . Average Influence 243 | 8 177 39 126 144 376 . . . . Maximum Alert Level 3 | . 1 . 1 1 3 . . . . Low Security (%) 54 | . . . . . . . . . . Level 1 24 | . . . . . . . . . . Level 2 17 | . . . . . . . . . . Level 3 2 | . . . . . . . . . . Level 4 . | . . . . . . . . . . Level 5 . | . . . . . . . . . . High Security . | . . . . . . . . . . Max Security . | . . . . . . . . . . Squads Dispatched 28 | . 5 . 2 4 16 . 1 . . Investigation 14 | . 5 . . 3 6 . . . . Extermination 7 | . . . . . 7 . . . . Reinforcement 4 | . . . 2 1 1 . . . . Assault 3 | . . . . . 2 . 1 . . Garrison . | . . . . . . . . . . Intercept . | . . . . . . . . . . Construction Impeded 1 | . . . . . 1 . . . . Haulers Reinforced . | . . . . . . . . . . Stealth | -11 -10 -10 -9 -8 -7 -7 -7 -7 -6 --------- Run | Scr Mat Min Mat Mat Fac Low Low Dat Pro Distress Signals 5 | . . . . 3 2 . . . . Communications Jammed . | . . . . . . . . . . Distress Signals . | . . . . . . . . . . Times Spotted 199 | . 22 5 23 54 55 5 23 . 12 Peak Tracking Total 9 | . 3 3 5 5 4 2 9 . 4 Tactical Retreats 24 | . 1 2 5 5 2 2 5 . 2 Traps | -11 -10 -10 -9 -8 -7 -7 -7 -7 -6 ------- Run | Scr Mat Min Mat Mat Fac Low Low Dat Pro Traps Triggered 6 | . 2 . . 1 3 . . . . Indirectly . | . . . . . . . . . . Trap Hack Attempts . | . . . . . . . . . . Triggered . | . . . . . . . . . . Disarmed . | . . . . . . . . . . Reprogrammed . | . . . . . . . . . . Reused 3 | . . . . . 2 . 1 . . Traps Extracted . | . . . . . . . . . . Installed 3 | . . . . . 2 . 1 . . Triggered 4 | . . . . . 2 . 2 . . Machines | -11 -10 -10 -9 -8 -7 -7 -7 -7 -6 ---------- Run | Scr Mat Min Mat Mat Fac Low Low Dat Pro Machines Disabled 6 | . . . . 1 5 . . . . Max in Single Turn 4 | . . . . 1 4 . . . . Garrison Access 2 | . . . . 1 1 . . . . Machines Sabotaged . | . . . . . . . . . . Garrisons Compromised . | . . . . . . . . . . Overloaded Fab Kills . | . . . . . . . . . . Fab Network Shutdowns . | . . . . . . . . . . Hacking | -11 -10 -10 -9 -8 -7 -7 -7 -7 -6 --------- Run | Scr Mat Min Mat Mat Fac Low Low Dat Pro Machines Accessed 35 | . 5 1 2 10 13 . . 4 . Terminals 19 | . 4 1 2 6 6 . . . . Fabricators 2 | . . . . . 2 . . . . Repair Stations 1 | . . . . 1 . . . . . Recycling Units 6 | . 1 . . 2 3 . . . . Scanalyzers . | . . . . . . . . . . Garrison Access 3 | . . . . 1 2 . . . . Total Hacks 116 | . 19 3 11 26 31 . . 26 . Successful 72 | . 11 1 8 14 12 . . 26 . Failed 43 | . 7 2 3 12 19 . . . . Catastrophic 6 | . . . . 2 4 . . . . Database Lockouts 2 | . 2 . . . . . . . . Manual 39 | . 13 . 8 6 12 . . . . Terminals 65 | . 18 3 11 18 15 . . . . Fabricators 4 | . . . . . 4 . . . . Repair Stations 3 | . . . . 3 . . . . . Recycling Units 11 | . 1 . . 4 6 . . . . Scanalyzers . | . . . . . . . . . . Garrison Access 7 | . . . . 1 6 . . . . Terminal Hacks 51 | . 6 1 4 9 5 . . 26 . Record 11 | . . . . . . . . 11 . Part Schematic 4 | . . . . . . . . 4 . Robot Schematic 9 | . 1 . . . . . . 8 . Robot Analysis 1 | . 1 . . . . . . . . Prototype ID Bank 5 | . . . 1 1 . . . 3 . Branch Access Points 2 | . 1 . . . 1 . . . . Alert Level 2 | . . . . 2 . . . . . Unreport Threat 3 | . . . . 2 1 . . . . Locate Traps 6 | . 1 . 1 2 2 . . . . Dispatch Records 1 | . . . 1 . . . . . . Recall Investigation 1 | . . . . 1 . . . . . Recall Assault 1 | . . . . . 1 . . . . Registered Components 1 | . 1 . . . . . . . . Zone Layout 4 | . 1 1 1 1 . . . . . Fabricator Hacks 1 | . . . . . 1 . . . . Build 1 | . . . . . 1 . . . . Repair Station Hacks 2 | . . . . 2 . . . . . Scan Component 1 | . . . . 1 . . . . . Repair 1 | . . . . 1 . . . . . Recycling Unit Hacks 3 | . . . . 1 2 . . . . Retrieve Components 3 | . . . . 1 2 . . . . Scanalyzer . | . . . . . . . . . . Garrison Access Hacks 1 | . . . . 1 . . . . . Seal Access 1 | . . . . 1 . . . . . Unauthorized Hacks 36 | . 12 . 8 4 12 . . . . Terminals 8 | . 4 . 4 . . . . . . Track 3 | . 1 . 2 . . . . . . Botnet 5 | . 3 . 2 . . . . . . Fabricators . | . . . . . . . . . . Repair Stations . | . . . . . . . . . . Recycling Units 5 | . 1 . . 1 3 . . . . Tunnel 5 | . 1 . . 1 3 . . . . Scanalyzers . | . . . . . . . . . . Garrison Access 1 | . . . . . 1 . . . . Jam 1 | . . . . . 1 . . . . Data Cores Recovered . | . . . . . . . . . . Used . | . . . . . . . . . . Hacking Detections 26 | . 3 1 2 8 12 . . . . Full Trace Events 4 | . 1 . . 2 1 . . . . Feedback Events . | . . . . . . . . . . Feedback Blocked . | . . . . . . . . . . Robot Schematics Acquired 9 | . 1 . . . . . . 8 . Robots Built . | . . . . . . . . . . Matter . | . . . . . . . . . . Time . | . . . . . . . . . . Total Robot Build Rating . | . . . . . . . . . . Part Schematics Acquired 4 | . . . . . . . . 4 . Parts Built 1 | . . . . . 1 . . . . Matter 168 | . . . . . 168 . . . . Time 42 | . . . . . 42 . . . . Total Part Build Rating 4 | . . . . . 4 . . . . Parts Repaired 1 | . . . . 1 . . . . . Time 26 | . . . . 26 . . . . . Parts Recycled . | . . . . . . . . . . Recycled Matter . | . . . . . . . . . . Retrieved Matter . | . . . . . . . . . . Retrieved Components 29 | . . . . 9 20 . . . . Parts Scanalyzed . | . . . . . . . . . . Part Schematics Acquired . | . . . . . . . . . . Parts Damaged . | . . . . . . . . . . Bothacking | -11 -10 -10 -9 -8 -7 -7 -7 -7 -6 ------------ Run | Scr Mat Min Mat Mat Fac Low Low Dat Pro Used RIF Installer . | . . . . . . . . . . Robots Hacked . | . . . . . . . . . . Non-combat . | . . . . . . . . . . Combat . | . . . . . . . . . . Robot Hacks Applied . | . . . . . . . . . . Relay Couplers Released . | . . . . . . . . . . Robots Rewired 2 | . . . . . . . 2 . . Allies Hacked . | . . . . . . . . . . Hacks Repelled . | . . . . . . . . . . Allies | -11 -10 -10 -9 -8 -7 -7 -7 -7 -6 -------- Run | Scr Mat Min Mat Mat Fac Low Low Dat Pro Total Allies 4 | . . . . . . . 3 . 1 Largest Group 3 | . . . . . . . 2 2 3 Highest-Rated Group 163 | . . . . . . . 163 40 134 Highest-Rated Ally 163 | . . . . . . . 163 20 94 Total Orders . | . . . . . . . . . . Ally Attacks 27 | . . . . . . . . . 27 Total Damage 676 | . . . . . . . . . 676 Kills 5 | . . . . . . . . . 5 Allies Corrupted . | . . . . . . . . . . Allies Melted . | . . . . . . . . . . Intel | -11 -10 -10 -9 -8 -7 -7 -7 -7 -6 ------- Run | Scr Mat Min Mat Mat Fac Low Low Dat Pro Robot Analysis Total 1 | . 1 . . . . . . . . Derelict Logs Recovered 2 | . . . . . . 1 1 . . Drone Launches . | . . . . . . . . . . Drone Recoveries . | . . . . . . . . . . Exploration | -11 -10 -10 -9 -8 -7 -7 -7 -7 -6 ------------- Run | Scr Mat Min Mat Mat Fac Low Low Dat Pro Turns Passed 9848 | 110 840 272 581 1927 2965 1271 1293 160 429 Spaces Moved 4990 | 58 422 122 231 857 1517 837 677 86 183 Core 5 | 3 2 . . . . . . . . Treads 1909 | . . 122 28 570 599 12 309 86 183 Legs 708 | . 161 . . . 529 18 . . . Wheels 2368 | 55 259 . 203 287 389 807 368 . . Hover . | . . . . . . . . . . Flight . | . . . . . . . . . . Fastest Speed 50 | 50 100 180 120 120 130 120 130 180 180 Average Speed 151 | 97 128 180 140 156 157 134 154 180 180 Slowest Speed 280 | 100 250 180 240 240 240 280 260 180 180 Overloaded Moves . | . . . . . . . . . . Propulsion Burnouts . | . . . . . . . . . . Robots Hopped . | . . . . . . . . . . Cave-ins Triggered 1 | . . . . . . . 1 . . Exploration Rate (%) 46 | 5 66 28 28 67 35 76 62 68 29 Regions Visited 9 Branch Regions 5 Pre-discovered Areas 6 | . 1 . . 1 3 . . 1 . Known Exits Taken 2 | . 1 . . . 1 . . . . Unknown Exits Taken 7 | 1 . 1 1 1 . 1 1 1 . Scrap Searched 11 | . . 1 . . . 4 4 . 2 Spaces Dug 36 | . . . 5 1 . 7 23 . . Terrain Destroyed 241 | . . 1 5 1 64 89 73 . 8 Melee 8 | . . . . . . 7 1 . . Projectile 12 | . . 1 5 1 3 1 1 . . AOE 221 | . . . . . 61 81 71 . 8 Actions | -11 -10 -10 -9 -8 -7 -7 -7 -7 -6 --------- Run | Scr Mat Min Mat Mat Fac Low Low Dat Pro Total 6274 | 85 561 152 362 1135 1844 924 878 93 240 Wait 305 | . 17 6 38 40 71 29 98 2 4 Move 4981 | 57 421 121 230 856 1516 836 676 85 183 Hop . | . . . . . . . . . . Pick Up 108 | 7 8 5 12 24 33 3 8 1 7 Fast Attach 63 | 7 5 . 7 11 14 7 5 2 5 Attach 46 | . 3 3 3 10 11 4 4 . 8 Detach 5 | . 1 . 2 1 . 1 . . . Swap 56 | . 6 1 4 14 15 5 8 . 3 Drop 99 | 1 6 . 6 22 43 7 6 3 5 Fire 535 | 13 94 11 53 157 134 25 23 . 25 Melee 15 | . . . 6 . . 7 2 . . Ram 1 | . . . 1 . . . . . . Kick . | . . . . . . . . . . Crush 5 | . . 5 . . . . . . . Escape Stasis 5 | . . . . . 5 . . . . Rewire 47 | . . . . . . . 47 . . Trap 3 | . . . . . 2 . 1 . . Miscellaneous . | . . . . . . . . . . Route ------- -11/Scrapyard -10/Materials (discovered 3 exits: Mat / *Min x2) -10/Mines -9/Materials -8/Materials (discovered 2 exits: *Fac x2) -7/Factory (discovered 4 exits: *Fac / *Sto / *Low x2) -7/Lower Caves -7/Lower Caves (discovered 3 exits: *Fac x2 / *Dat) -7/Data Miner -6/Proximity Caves History --------- Turn | Location | Event 36 | -11/Scrapyard | Discovered new exit (range 16) 111 | -11/Scrapyard | Entered Materials 237 | -10/Materials | Discovered new exit (range 11) 310 | -10/Materials | Build established: Mutant 323 | -10/Materials | Discovered new exit (range 16) 324 | -10/Materials | Central database locked down 412 | -10/Materials | Identified exit to Mines 583 | -10/Materials | Core integrity fell below 50% 632 | -10/Materials | Lost 3 parts (2n1w) 724 | -10/Materials | Discovered new exit (range 11) 944 | -10/Materials | Core integrity fell below 20% 951 | -10/Materials | Entered Mines 952 | -10/Mines | Assembled infested the area 998 | -10/Mines | Lost 4 parts (1n3w) 1008 | -10/Mines | Build established: Hauler-Mutant 1154 | -10/Mines | Found a hidden stash of uninstalled traps 1214 | -10/Mines | Discovered new exit (range 5) 1223 | -10/Mines | Entered Materials 1223 | -9/Materials | Evolved 2 slots: Utility x2 1538 | -9/Materials | Core integrity fell below 50% 1691 | -9/Materials | Discovered new exit (range 13) 1804 | -9/Materials | Entered another Materials area 1804 | -8/Materials | Evolved 2 slots: Propulsion x1, Utility x1 2072 | -8/Materials | Lost 3 parts (1n2w) 2602 | -8/Materials | Discovered new exit (range 5) 2873 | -8/Materials | Repaired Lgt. Armor Plating 3310 | -8/Materials | Core integrity fell below 50% 3588 | -8/Materials | Discovered new exit (range 15) 3731 | -8/Materials | Entered Factory 3731 | -7/Factory | Evolved 2 slots: Utility x2 4300 | -7/Factory | Discovered new exit (range 11) 4423 | -7/Factory | Identified exit to Factory 5537 | -7/Factory | Found Prototype Launcher 5537 | -7/Factory | Identified Rocket Array 5731 | -7/Factory | First assault squad dispatched 5778 | -7/Factory | Discovered new exit (range 15) 5821 | -7/Factory | Identified exit to Storage 5994 | -7/Factory | Destroyed 7 combat bots 6002 | -7/Factory | Lost 3 parts (1p1n1u) 6101 | -7/Factory | Identified exit to Lower Caves 6537 | -7/Factory | Fabricated Imp. EM Pulse Cannon (x1) 6696 | -7/Factory | Entered Lower Caves 6791 | -7/Lower Caves | Gauss Rifle stolen by Master Thief 6801 | -7/Lower Caves | Lgt. Angular Momentum Engine stolen by Master Thief 6947 | -7/Lower Caves | Encountered a Warlord checkpoint 6995 | -7/Lower Caves | Spotted B-75 Beast 7233 | -7/Lower Caves | Learned Factory emergency access door positions 7637 | -7/Lower Caves | Core integrity fell below 50% 7739 | -7/Lower Caves | Destroyed B-75 Beast 7957 | -7/Lower Caves | Discovered new exit (range 8) 7967 | -7/Lower Caves | Entered another Lower Caves area 7992 | -7/Lower Caves | Discovered exit to Factory (range 14) 8065 | -7/Lower Caves | Spotted B-75 Beast 8564 | -7/Lower Caves | Destroyed B-75 Beast 8583 | -7/Lower Caves | Crushed by falling debris 8583 | -7/Lower Caves | System corruption reached 10% 8614 | -7/Lower Caves | Lost 3 parts (1n1u1w) 8771 | -7/Lower Caves | Core integrity fell below 20% 8789 | -7/Lower Caves | Attracted the attention of an 0b10 checkpoint 8929 | -7/Lower Caves | P1-3CE showed up to help 8931 | -7/Lower Caves | P1-3CE revealed a hidden path 9122 | -7/Lower Caves | Discovered new exit (range 15) 9137 | -7/Lower Caves | Attracted the attention of an 0b10 outpost 9174 | -7/Lower Caves | Destroyed 9 combat bots 9260 | -7/Lower Caves | Entered Data Miner 9260 | -7/Data Miner | Accompanied by 2 allies 9260 | -7/Data Miner | Discovered new exit (range 6) 9296 | -7/Data Miner | Met Data Miner 9326 | -7/Data Miner | Learned location of Section 7 (-3) 9326 | -7/Data Miner | Acquired the access code to Warlord's prototype stash 9357 | -7/Data Miner | Received God Mode back door access code from Data Miner 9420 | -7/Data Miner | Entered Proximity Caves 9420 | -6/Proximity Caves | Accompanied by 2 allies 9499 | -6/Proximity Caves | Escorted by Enhanced Grunt 9711 | -6/Proximity Caves | Spotted B-75 Beast 9772 | -6/Proximity Caves | Destroyed B-75 Beast 9799 | -6/Proximity Caves | Lost 4 parts (1p2u1w) 9817 | -6/Proximity Caves | Found Prototype Device 9817 | -6/Proximity Caves | Identified Exp. Thermal Shield 9849 | -6/Proximity Caves | Destroyed by H-66 Slayer with Gauss Rifle Last Messages --------------- 09819_ Dropped Exp. Thermal Shield. 09819_ Acquired 20 matter. 09826_ System corrupted: Component data lost. 09826_ Dropped Imp. Deuterium Engine. 09827_ Acquired Rnf. Deuterium Engine. 09828_ Acquired 10 matter. 09836_ Chain reaction triggered in Imp. Ion Engine. 09836_ C-30 ARC bursts open, deploying its payload. 09836_ H-66 Slayer unfolds itself. 09836_ Slug penetrates Earth. 09838_ Penetrated by Slug. 09840_ Extracted 173 energy. 09840_ Penetrated by Slug. 09842_ System corrupted: Heat flow error (+162). 09843_ Penetrated by Slug. 09843_ Imp. EM Pulse Cannon destroyed. 09844_ Penetrated by Slug. 09847_ Slug penetrates Wall. 09847_ Targeting Computer fried. 09847_ H-66 Slayer destroyed. Map ----- +----------------------------------------------------+ | # #??????????????????????????????????????????????? | | #??????????????????????????????????????????????? | | #??????????????????????????????????????????????? | | #??????????????????????????????????????????????? | | ##??????????????????????????????????????????????? | | ##???????????????????????????????????????????????? | | #????????????????????????????????????????????????? | | #????????????????????????????????????????????????? | | #####????????????????????????????????????????????? | | ##???????????????????? ??? ??????????????????? | | #???????????????????# #????????????????? | | #????????????????### #????????????????? | | #???????? ???????# #????????????????? | | #???????? ??????# ?????????????????? | | #???????? ??????# ??????????????????? | | #???????? ?????? ???????????????????? | | ##???????# ?????? ????????????????????? | | #???????? #??????? #????????????????????? | | #???????? ##?????? #????????????????????? | | #???????? #?????? ##???????????????????? | | ##??????? ??###??# ##??????????????????? | | ##??????# #?# ### #??????????????????? | | #???#### # #;;; #??????????????????? | | ##???# #?#;; =! ###??????????????????? | | #####????# #?## * %! ;######???????????????? | | ###??????# ### [%% !@ #???????????????? | | ##??????# ## ;;;; ;; ????????? | | #?????## ####; # ????????? | | # ##????# % ####??## = ? ??????????? | | ## ####### ##??????? %* ?????????? | | ?## ## ### %""##???????? !% ??????????? | | ??# ##" =" #?????????## h ??????????? | | ??# ##" %###??????????? ;;; ??????????? | | ??## ##% #????????????? ####### ???????????? | | ???### %%= #?????????????? #??????????????????? | | ?????## ####* #?????????????? ??????????????????? | | ??????###?# "#?????????????? ?????????????????? | | ?????????# !% #?????????????? ?????????????????? | | ???????? % ?????????????? ?????????????????? | | ??????? % ???????????????????????????????? | | ?????? ## ??????????????????????????????? | | ?????###%?## ##?????????????????????????????? | | ???????#???# % ??????????????????????????????? | | ???????????# % #?????????????????????????????? | | ???????????# ### #?????????????????????????????? | | ???????????? #?? #?????????????????????????????? | | ???????????? #??? #?????????????????????????????? | | ???????????? ??? #?????????????????????????????? | | ???????????? ???? ?????????????????????????????? | | ???????????? ??????????????????????????????????? | +----------------------------------------------------+ Best States ------------- Heat Dissipation 61 Energy Generation 18 Energy Capacity 590 Matter Stores 300 Matter Capacity 300 Sight Range 16 Terrain Scan Range 20 Terrain Scan Density 10 Armor Coverage 825 Resistance: KI 20 Resistance: TH 15 Resistance: EM 15 Core Shielding 20 Weapon Cycling 15 Evasion (%) 40 Targeting Accuracy 16 Target Analysis 5 Recoil Reduction 3 Energy Filtering 30 Item Schematics ----------------- Combat Drone Bay | -7/Data Miner | Free Lgt. Regenerative Plating | -7/Data Miner | Free Exp. Sensor Array | -7/Data Miner | Free Cloaking Device | -7/Data Miner | Free Robot Schematics ------------------ O-16 Technician | -10/Materials | Hacked S-27 Virus | -7/Data Miner | Free G-50 Soldier | -7/Data Miner | Free L-41 Fighter | -7/Data Miner | Free P-70 Sage | -7/Data Miner | Free I-36 Angel | -7/Data Miner | Free I-47 Archangel | -7/Data Miner | Free X-72 Disruptor | -7/Data Miner | Free G-67 Veteran | -7/Data Miner | Free Fabricated ------------ Imp. EM Pulse Cannon | x1 | -7/Factory | Preloaded Alien Tech Used ----------------- None Achievements -------------- None Challenges ------------ None Game ------ Seed ScatterTractorCharger Manual? 0 Play Time 01:03:14 Cumulative 239.9 hours Start 2019.10.27 @ 22:12:06 End 2019.10.27 @ 23:11:50 Sessions 1 Manual Loads 0 Difficulty Rogue Special Mode None Game No. 194 Rogue 194 Adventurer 0 Explorer 0 Win Type - Total 3 Types 3/0/0/0/0/0/0 Lore% 73 Gallery% 76 Achievement% 53 Wizard Run 0 Options --------- ASCII 0 Keyboard 0 Movement Mouse Keybinds 1 Fullscreen 2 Font 24/Smallcaps Map View 76x50 Tactical HUD 1 Map Filters NONE Filters NONE Steam 1 RUN: d40a120e-cbe0-43e2-8315-0f8bfe38e75d